[Event "ESP chT Honor Division 2019"]
[Site "Melilla"]
[Date "2019.10.06"]
[Round "7.21"]
[White "Santos Ruiz, Miguel"]
[Black "Paehtz, Elisabeth"]
[Result "1/2-1/2"]
[ECO "C09"]
[WhiteElo "2560"]
[BlackElo "2489"]
[Annotator "ChessBase"]
[PlyCount "71"]
[EventDate "2019.09.30"]
[EventType "team-tourn"]
[EventCountry "ESP"]
[SourceTitle "playchess.com"]
[Source "ChessBase"]
[SourceQuality "1"]
[TimeControl "40/5400+30:1800+30"]

1. e4 {[%emt 0:00:00]} e6 {[%emt 0:00:00]} 2. d4 {[%emt 0:00:00]} d5 {[%emt 0:00:00]} 3. Nd2 {[%emt 0:00:00]} c5 {[%emt 0:00:00]} 4. Ngf3 {[%emt 0:00:00]} Nc6 {[%emt 0:00:00]} 5. exd5 {[%emt 0:00:00]} exd5 {[%emt 0:00:00]} 6. Bb5 {[%emt 0:00:00]} Qe7+ {[%emt 0:00:00]} 7. Be2 {[%emt 0:00:02]} Qc7 {[%emt 0:00:03]} 8. O-O {[%emt 0:00:06]} Nf6 {[%emt 0:00:03]} 9. Re1 {[%emt 0:00:07]} Be6 {[%emt 0:03:14]} 10. Bd3 {[%emt 0:01:03]} Be7 {[%emt 0:01:28]} 11. dxc5 {[%emt 0:00:38]} Bxc5 {[%emt 0:00:06]} 12. Nb3 {[%emt 0:00:19]} Bb6 {[%emt 0:00:03]} 13. Be3 {[%emt 0:00:25]} O-O {[%emt 0:01:24]} 14. h3 {[%emt 0:03:34]} Bxe3 {[%emt 0:03:29]} 15. Rxe3 {[%emt 0:00:15]} Rfe8 {[%emt 0:00:26]} 16. Qd2 {[%emt 0:14:50]} Bd7 {[%emt 0:13:16]} 17. Rae1 {[%emt 0:08:08]} Rxe3 {[%emt 0:00:04]} 18. Rxe3 {[%emt 0:00:05]} Re8 {[%emt 0:00:08]} 19. a3 {[%emt 0:12:21]} Qb6 {[%emt 0:02:01]} 20. Rxe8+ {[%emt 0:00:28]} Bxe8 {[%emt 0:00:06]} 21. Qf4 {[%emt 0:00:51]} Nd8 {[%emt 0:04:45]} 22. Qb4 {[%emt 0:06:12]} Qxb4 {[%emt 0:11:26]} 23. axb4 {[%emt 0:00:06]} Kf8 {[%emt 0:00:13]} 24. Kf1 {[%emt 0:00:54]} Ke7 {[%emt 0:01:28]} 25. Ke2 {[%emt 0:00:06]} Ne6 {[%emt 0:02:12]} 26. g3 {[%emt 0:08:00]} Bd7 {[%emt 0:08:05]} 27. h4 {[%emt 0:00:22]} g6 {[%emt 0:04:16]} 28. Nbd4 {[%emt 0:01:39]} Kd6 {[%emt 0:01:40]} 29. c3 {[%emt 0:04:51]} a6 {[%emt 0:07:30]} 30. Kd2 {[%emt 0:08:45]} Ng4 {[%emt 0:01:32]} 31. Ke1 {[%emt 0:00:06]} Be8 {[%emt 0:02:22]} 32. Ke2 {[%emt 0:03:28]} Nf6 {[%emt 0:00:42]} 33. Kd2 {[%emt 0:01:23]} Ng4 {[%emt 0:00:06]} 34. Ke1 {[%emt 0:00:02]} Nf6 {[%emt 0:00:17]} 35. Ne2 {[%emt 0:00:04]} Ng4 {[%emt 0:00:53]} 36. Ned4 {[%emt 0:05:20] Ke5} 1/2-1/2

[Event "ESP chT Honor Division 2019"]
[Site "Melilla"]
[Date "2019.10.06"]
[Round "7.22"]
[White "Franco Alonso, Alejandro"]
[Black "Tejedor Fuente, Enrique"]
[Result "1/2-1/2"]
[ECO "E44"]
[WhiteElo "2384"]
[BlackElo "2453"]
[Annotator "ChessBase"]
[PlyCount "89"]
[EventDate "2019.09.30"]
[EventType "team-tourn"]
[EventCountry "ESP"]
[SourceTitle "playchess.com"]
[Source "ChessBase"]
[SourceQuality "1"]
[TimeControl "40/5400+30:1800+30"]

1. d4 {[%emt 0:00:00]} Nf6 {[%emt 0:00:00]} 2. c4 {[%emt 0:00:00]} e6 {[%emt 0:00:04]} 3. Nc3 {[%emt 0:00:00]} Bb4 {[%emt 0:00:03]} 4. e3 {[%emt 0:00:00]} b6 {[%emt 0:00:30]} 5. Nge2 {[%emt 0:00:14]} Ne4 {[%emt 0:02:05]} 6. Qc2 {[%emt 0:00:51]} f5 {[%emt 0:06:07]} 7. a3 {[%emt 0:02:00]} Bxc3+ {[%emt 0:00:21]} 8. Nxc3 {[%emt 0:00:07]} Nxc3 {[%emt 0:08:01]} 9. Qxc3 {[%emt 0:00:22]} Bb7 {[%emt 0:00:18]} 10. b4 {[%emt 0:00:23]} O-O {[%emt 0:00:55]} 11. Bb2 {[%emt 0:00:13]} d6 {[%emt 0:03:27]} 12. d5 {[%emt 0:04:16]} e5 {[%emt 0:00:24]} 13. Bd3 {[%emt 0:09:35]} Nd7 {[%emt 0:00:56]} 14. O-O {[%emt 0:00:53]} Rf7 {[%emt 0:19:04]} 15. f4 {[%emt 0:01:28]} Qf8 {[%emt 0:00:08]} 16. Bc2 {[%emt 0:04:56]} Rc8 {[%emt 0:07:46]} 17. Rad1 {[%emt 0:18:06]} e4 {[%emt 0:03:10]} 18. Qd4 {[%emt 0:07:30]} Kh8 {[%emt 0:02:49]} 19. h3 {[%emt 0:05:50]} Qe7 {[%emt 0:01:14]} 20. Ba4 {[%emt 0:04:08]} Nf6 {[%emt 0:10:33]} 21. Rd2 {[%emt 0:00:48]} h6 {[%emt 0:00:13]} 22. Bd1 {[%emt 0:01:16]} Rg8 {[%emt 0:00:41]} 23. g4 {[%emt 0:01:39]} Kh7 {[%emt 0:02:59]} 24. Rg2 {[%emt 0:02:09]} g6 {[%emt 0:03:52]} 25. g5 {[%emt 0:03:46]} hxg5 {[%emt 0:04:18]} 26. Rxg5 {[%emt 0:00:11]} Kg7 {[%emt 0:01:35]} 27. Rf2 {[%emt 0:02:27]} Rff8 {[%emt 0:02:04]} 28. Rfg2 {[%emt 0:06:09]} Kf7 {[%emt 0:00:00]} 29. h4 {[%emt 0:03:15]} Rg7 {[%emt 0:01:57]} 30. Bh5 {[%emt 0:05:25]} Nxh5 {[%emt 0:09:24]} 31. Rxh5 {[%emt 0:00:19]} Ke8 {[%emt 0:00:17]} 32. Rhg5 {[%emt 0:09:30]} Rh7 {[%emt 0:00:37]} 33. Rh2 {[%emt 0:01:31]} Kd8 {[%emt 0:06:34]} 34. Bc3 {[%emt 0:00:28]} Bc8 {[%emt 0:01:04]} 35. Be1 {[%emt 0:01:07]} Bd7 {[%emt 0:01:57]} 36. a4 {[%emt 0:03:44]} Be8 {[%emt 0:00:37]} 37. Bc3 {[%emt 0:00:18]} Qd7 {[%emt 0:01:26]} 38. b5 {[%emt 0:01:42]} a5 {[%emt 0:00:00]} 39. Be1 {[%emt 0:00:40]} Rfh8 {[%emt 0:00:51]} 40. Bc3 {[%emt 0:00:43]} Rf8 {[%emt 0:00:14]} 41. Kf2 {[%emt 0:30:36]} Qe7 {[%emt 0:31:19]} 42. Qd2 {[%emt 0:00:00]} Kc8 {[%emt 0:00:00]} 43. Ke1 {[%emt 0:00:00]} Rh6 {[%emt 0:00:00]} 44. Qg2 {[%emt 0:00:00]} Qh7 {[%emt 0:00:00]} 45. Qg3 {[%emt 0:00:00]} 1/2-1/2

[Event "ESP chT Honor Division 2019"]
[Site "Melilla"]
[Date "2019.10.06"]
[Round "7.24"]
[White "Argandona Riveiro, Inigo"]
[Black "Arabidze, Meri"]
[Result "0-1"]
[ECO "C58"]
[WhiteElo "2413"]
[BlackElo "2398"]
[Annotator "ChessBase"]
[PlyCount "64"]
[EventDate "2019.09.30"]
[EventType "team-tourn"]
[EventCountry "ESP"]
[SourceTitle "playchess.com"]
[Source "ChessBase"]
[SourceQuality "1"]
[TimeControl "40/5400+30:1800+30"]

1. e4 {[%emt 0:00:00]} e5 {[%emt 0:00:00]} 2. Nf3 {[%emt 0:00:00]} Nc6 {[%emt 0:00:00]} 3. Bc4 {[%emt 0:00:00]} Nf6 {[%emt 0:00:17]} 4. Ng5 {[%emt 0:00:00]} d5 {[%emt 0:00:27]} 5. exd5 {[%emt 0:00:00]} Na5 {[%emt 0:00:07]} 6. Bb5+ {[%emt 0:00:00]} c6 {[%emt 0:00:14]} 7. dxc6 {[%emt 0:00:00]} bxc6 {[%emt 0:00:08]} 8. Qf3 {[%emt 0:00:00]} Be7 {[%emt 0:05:10]} 9. Bd3 {[%emt 0:00:02]} h6 {[%emt 0:04:01]} 10. Ne4 {[%emt 0:00:02]} Nd5 {[%emt 0:03:32]} 11. O-O {[%emt 0:00:30]} Nf4 {[%emt 0:06:25]} 12. Re1 {[%emt 0:02:40]} Nxd3 {[%emt 0:11:11]} 13. cxd3 {[%emt 0:00:01]} O-O {[%emt 0:02:11]} 14. b3 {[%emt 0:00:02]} f5 {[%emt 0:03:23]} 15. Nec3 {[%emt 0:01:27]} Bb7 {[%emt 0:08:03]} 16. Rxe5 {[%emt 0:06:10]} c5 {[%emt 0:01:20]} 17. Qh3 {[%emt 0:01:53]} Bd6 {[%emt 0:04:08]} 18. Re3 {[%emt 0:02:23]} Nc6 {[%emt 0:07:24]} 19. Nb5 {[%emt 0:02:42]} Be5 {[%emt 0:05:16]} 20. N1c3 {[%emt 0:01:21]} Bd4 {[%emt 0:03:42]} 21. Bb2 {[%emt 0:02:28]} Bxe3 {[%emt 0:03:15]} 22. dxe3 {[%emt 0:00:11]} Qxd3 {[%emt 0:01:32]} 23. Qg3 {[%emt 0:03:27]} Rad8 {[%emt 0:01:47]} 24. h3 {[%emt 0:01:41]} f4 {[%emt 0:03:27]} 25. exf4 {[%emt 0:01:58]} Qxg3 {[%emt 0:00:23]} 26. fxg3 {[%emt 0:00:01]} Rd2 {[%emt 0:00:57]} 27. Bc1 {[%emt 0:00:03]} Rc2 {[%emt 0:00:47]} 28. Nd6 {[%emt 0:04:06]} Ba8 {[%emt 0:06:04]} 29. Nce4 {[%emt 0:00:54]} Nd4 {[%emt 0:00:29]} 30. Kf1 {[%emt 0:00:30]} Bxe4 {[%emt 0:02:20]} 31. Nxe4 {[%emt 0:00:30]} Re8 {[%emt 0:00:14]} 32. Nd2 {[%emt 0:00:04]} Ne2 0-1